bitfinex-derivatives/quotes_SOLF0:USTF0_20251026
["timestamp","ask_amount","ask_price","bid_price","bid_amount"]
[1761514944075,15.19,198.11,197.97,2.67]
[1761514944377,19.44726181,198.1,197.97,2.67]
[1761514944577,15.19,198.1,197.97,2.67]
[1761514945278,6.68721322,198.13,197.97,2.67]
[1761514945478,67.06187399,198.12,197.97,2.67]
[1761514945674,4.26187399,198.11,197.97,2.67]
[1761514948076,19.45187399,198.11,197.97,2.67]
[1761514948270,19.45187399,198.1,197.97,2.67]
[1761514948471,4.26187399,198.09,197.97,2.67]
[1761514948874,4.5447,198.03,197.97,2.67]
[1761514949179,19.45187399,198.08,197.97,2.67]
[1761514949376,4.26187399,198.07,197.97,2.67]
[1761514950480,15.19,198.09,197.97,2.67]
[1761514950679,19.45187399,198.08,197.97,2.67]
[1761514950879,4.26187399,198.07,197.97,2.67]
[1761514951079,15.19,198.06,197.93,2.67]
[1761514951278,4.26187399,198.05,197.93,2.67]
[1761514951481,4.26187399,198.06,197.93,2.67]
[1761514951683,4.5446,198.03,197.93,2.67]
[1761514951886,4.26187399,198.07,197.93,2.67]
[1761514952083,4.28170999,198.07,197.93,2.67]
[1761514953180,4.28170999,198.06,197.93,2.67]
[1761514953486,8.93684086,198.07,197.93,2.67]
[1761514953685,4.28170999,198.06,197.93,2.67]
[1761514953983,62.7,198.05,197.93,2.67]
[1761514954188,4.28170999,198.04,197.93,2.67]
[1761514955286,8.93684086,198.06,197.93,2.67]
[1761514955588,4.28170999,198.05,197.93,2.67]
[1761514955882,4.28170999,198.08,197.97,2.67]
[1761514956089,4.28170999,198.07,197.97,2.67]
[1761514956391,4.28170999,198.06,197.97,2.67]
[1761514956585,4.28170999,198.08,197.97,2.67]
[1761514956887,4.28170999,198.07,197.97,2.67]
[1761514957086,4.28170999,198.06,197.97,2.67]
[1761514957279,4.30761614,198.05,197.97,2.67]
[1761514957480,4.30761614,198.04,197.97,2.67]
[1761514957684,4.30761614,198.07,197.97,2.67]
[1761514957884,4.30761614,198.06,197.97,2.67]
[1761514958186,4.30761614,198.05,197.97,2.67]
[1761514958381,4.30761614,198.04,197.97,2.67]
[1761514958580,4.30761614,198.03,197.97,2.67]
[1761514958787,4.30761614,198.06,197.97,2.67]
[1761514958988,4.30761614,198.05,197.97,2.67]
[1761514959190,4.30761614,198.04,197.97,2.67]
[1761514959389,4.30761614,198.03,197.97,2.67]
[1761514959584,8.96274701,198.07,197.97,2.67]
[1761514959789,4.30761614,198.06,197.97,2.67]
[1761514959992,4.30761614,198.05,197.97,2.67]
[1761514960189,4.30761614,198.04,197.97,2.67]
[1761514960388,4.30761614,198.03,197.97,2.67]
[1761514960589,4.30761614,198.06,197.97,2.67]
[1761514960792,4.30761614,198.05,197.97,2.67]
[1761514960986,4.30761614,198.04,197.97,2.67]
[1761514961186,4.30761614,198.03,197.97,2.67]
[1761514961391,4.30761614,198.02,197.97,2.67]
[1761514961593,4.30761614,198.01,197.97,2.67]
[1761514961793,4.30761614,198.06,197.97,2.67]
[1761514961986,4.30761614,198.05,197.97,2.67]
[1761514962294,4.30761614,198.04,197.97,2.67]
[1761514962493,4.30761614,198.03,197.97,2.67]
[1761514962792,4.30761614,198.02,197.97,2.67]
[1761514962990,4.30761614,198.06,197.97,2.67]
[1761514963185,4.65513087,198.07,197.97,2.67]
[1761514963186,4.30761614,198.05,197.97,2.67]
[1761514963392,4.30761614,198.04,197.97,2.67]
[1761514963592,4.30761614,198.03,197.97,2.67]
[1761514963793,4.30761614,198.02,197.97,2.67]
[1761514964092,4.30761614,198.06,197.97,2.67]
[1761514964284,4.36591886,198.05,197.97,2.67]
[1761514964486,4.36591886,198.04,197.97,2.67]
[1761514964693,4.36591886,198.03,197.97,2.67]
[1761514964894,4.36591886,198.02,197.97,2.67]
[1761514965092,4.36591886,198.05,197.97,2.67]
[1761514965394,4.36591886,198.04,197.97,2.67]
[1761514965593,4.36591886,198.03,197.97,2.67]
[1761514965895,4.36591886,198.02,197.97,2.67]
[1761514966092,4.36591886,198.05,197.97,2.67]
[1761514966398,4.36591886,198.04,197.97,2.67]
[1761514966593,4.36591886,198.03,197.97,2.67]
[1761514966794,4.36591886,198.02,197.97,2.67]
[1761514966989,4.36591886,198.05,197.97,2.67]
[1761514967198,4.36591886,198.04,197.97,2.67]
[1761514967494,4.36591886,198.03,197.97,2.67]
[1761514967792,4.36591886,198.05,197.97,2.67]
[1761514967997,4.3684115,198.04,197.97,2.67]
[1761514968191,9.02354237,198.05,197.97,2.67]
[1761514968395,4.3684115,198.04,197.97,2.67]
[1761514968694,4.3684115,198.05,197.97,2.67]
[1761514968895,4.3684115,198.04,197.97,2.67]
[1761514969095,9.07562863,198.05,197.97,2.67]
[1761514969297,4.3684115,198.04,197.97,2.67]
[1761514969497,4.3684115,198.05,197.97,2.67]
[1761514969691,4.3684115,198.04,197.97,2.67]
[1761514969892,4.3684115,198.05,197.97,2.67]
[1761514970295,9.07562863,198.05,197.97,2.67]
[1761514970498,4.3684115,198.04,197.97,2.67]
[1761514970699,4.70721713,198.05,197.97,2.67]
[1761514971594,9.07562863,198.05,197.97,2.67]
[1761514971796,4.3684115,198.04,197.97,2.67]
[1761514972002,4.70721713,198.05,197.97,2.67]
[1761514972190,9.07562863,198.05,197.97,2.67]
[1761514972394,4.3684115,198.04,197.97,2.67]
[1761514972591,4.70721713,198.05,197.97,2.67]
[1761514972795,9.07562863,198.05,197.97,2.67]
[1761514973096,9.07562863,198.04,197.97,2.67]
[1761514973295,4.3684115,198.03,197.97,2.67]
[1761514973496,4.70721713,198.04,197.97,2.67]
[1761514974001,9.07562863,198.04,197.97,2.67]
[1761514974201,4.3684115,198.03,197.97,2.67]
[1761514975302,9.07562863,198.03,197.97,2.67]
[1761514975504,4.3684115,198.02,197.97,2.67]
[1761514975701,4.70721713,198.03,197.97,2.67]
[1761514976507,4.38222826,198.02,197.97,2.67]
[1761514978304,4.38222826,198.01,197.97,2.67]
[1761514978504,4.38222826,198.02,197.97,2.67]
[1761514978706,4.38222826,198.01,197.97,2.67]
[1761514978908,4.38222826,198.02,197.97,2.67]
[1761514979199,4.70721713,198.02,197.97,2.67]
[1761514979596,9.08944539,198.02,197.97,2.67]
[1761514979796,4.38222826,198.01,197.97,2.67]
[1761514980501,4.70721713,198.02,197.97,2.67]
[1761514981002,9.08944539,198.02,197.97,2.67]
[1761514981196,4.38222826,198.01,197.97,2.67]
[1761514981505,4.70721713,198.03,197.97,2.67]
[1761514981807,9.08944539,198.03,197.97,2.67]
[1761514982003,4.38222826,198.02,197.97,2.67]
[1761514982203,4.70721713,198.03,197.97,2.67]
[1761514982404,9.08944539,198.03,197.97,2.67]
[1761514982703,4.38222826,198.02,197.97,2.67]
[1761514983609,4.70721713,198.03,197.97,2.67]
[1761514983803,9.08944539,198.03,197.97,2.67]
[1761514984107,4.38222826,198.02,197.97,2.67]
[1761514984307,4.70721713,198.03,197.97,2.67]
[1761514984509,9.08944539,198.03,197.97,2.67]
[1761514984808,4.38222826,198.02,197.97,2.67]
[1761514985009,4.70721713,198.03,197.97,2.67]
[1761514985209,9.08944539,198.03,197.97,2.67]
[1761514985412,4.38222826,198.02,197.97,2.67]
[1761514985607,4.70721713,198.03,197.97,2.67]
[1761514985799,9.08944539,198.03,197.97,2.67]
[1761514985999,4.38222826,198.02,197.97,2.67]
[1761514986502,4.70721713,198.03,197.97,2.67]
[1761514987014,9.08944539,198.03,197.97,2.67]
[1761514987308,4.38222826,198.02,197.97,2.67]
[1761514987710,4.70721713,198.03,197.97,2.67]
[1761514988007,12.96819358,198.03,197.97,2.67]
[1761514988319,4.38222826,198.02,197.97,2.67]
[1761514988508,4.70721713,198.03,197.97,2.67]
[1761514988711,9.08944539,198.03,197.97,2.67]
[1761514988912,4.38222826,198.02,197.97,2.67]
[1761514990411,9.08944539,198.02,197.97,2.67]
[1761514990616,4.38222826,198.01,197.97,2.67]
[1761514990820,4.70721713,198.03,197.97,2.67]
[1761514991205,12.9685965,198.03,197.97,2.67]
[1761514991416,9.08944539,198.02,197.97,2.67]
[1761514991618,4.38222826,198.01,197.97,2.67]
[1761514992118,4.70721713,198.02,197.97,2.67]
[1761514992617,9.08944539,198.02,197.97,2.67]
[1761514992817,4.38222826,198.01,197.97,2.67]
[1761514993015,4.24196388,198.01,197.97,2.67]
[1761514993612,4.70721713,198.02,197.97,2.67]
[1761514994112,8.94918101,198.02,197.97,2.67]
[1761514994419,4.24196388,198.01,197.97,2.67]
[1761514994918,4.70721713,198.02,197.97,2.67]
[1761514995311,8.94918101,198.02,197.97,2.67]
[1761514995512,4.24196388,198.01,197.97,2.67]
[1761514997218,4.70721713,198.02,197.97,2.67]
[1761514997615,8.94918101,198.02,197.97,2.67]
[1761514997816,4.24196388,198.01,197.97,2.67]
[1761514998217,4.70721713,198.02,197.97,2.67]
[1761514998413,8.94918101,198.02,197.97,2.67]
[1761514998618,4.24196388,198.01,197.97,2.67]
[1761514998820,4.70721713,198.02,197.97,2.67]
[1761514999322,8.94918101,198.02,197.97,2.67]
[1761514999523,4.24196388,198.01,197.97,2.67]
[1761514999716,4.70721713,198.02,197.97,2.67]
[1761515000019,8.94918101,198.02,197.97,2.67]
[1761515000218,4.24196388,198.01,197.97,2.67]
[1761515000419,4.70721713,198.02,197.97,2.67]
[1761515000618,8.94918101,198.02,197.97,2.67]
[1761515001018,4.24196388,198.01,197.97,2.67]
[1761515001820,8.94918101,198.01,197.97,2.67]
[1761515002122,4.24196388,198.0,197.97,2.67]
[1761515003018,4.70721713,198.01,197.97,2.67]
[1761515003522,8.94918101,198.01,197.97,2.67]
[1761515003722,4.24196388,198.0,197.97,2.67]
[1761515004425,4.70721713,198.02,197.97,2.67]
[1761515004623,8.94918101,198.02,197.97,2.67]
[1761515004822,4.24196388,198.01,197.97,2.67]
[1761515005020,4.70721713,198.02,197.97,2.67]
[1761515005521,8.94918101,198.02,197.97,2.67]
[1761515005724,4.24196388,198.01,197.97,2.67]
[1761515005926,4.70721713,198.02,197.97,2.67]
[1761515006324,8.94918101,198.02,197.97,2.67]
[1761515006526,4.24196388,198.01,197.97,2.67]
[1761515006725,4.70721713,198.03,197.97,2.67]
[1761515006928,4.24196388,198.02,197.97,2.67]
[1761515007129,8.94918101,198.02,197.97,2.67]
[1761515007425,4.24196388,198.01,197.97,2.67]
[1761515007616,4.24196388,198.02,197.97,2.67]
[1761515007819,6.21331722,198.05,197.97,2.67]
[1761515007820,4.24196388,198.04,197.97,2.67]
[1761515008126,4.70721713,198.05,197.97,2.67]
[1761515008328,8.94918101,198.06,197.98,2.82]
[1761515008524,4.24196388,198.05,197.98,2.82]
[1761515009228,4.70721713,198.06,197.98,2.82]
[1761515009629,3.88014589,198.08,197.99,2.82]
[1761515009630,8.58736302,198.08,197.99,2.82]
[1761515009829,4.70721713,198.08,197.99,2.82]
[1761515010531,4.23030837,198.08,198.0,2.82]
[1761515010730,4.23030837,198.09,198.03,2.82]
[1761515010933,4.23030837,198.11,198.03,2.82]
[1761515011127,4.70721713,198.11,198.03,2.82]
[1761515011328,10.44362559,198.13,198.03,2.82]
[1761515011329,4.70721713,198.1,198.03,2.82]
[1761515011822,8.9375255,198.1,198.03,2.82]
[1761515012022,4.23030837,198.09,198.03,2.82]
[1761515012223,4.70721713,198.1,198.03,2.82]
[1761515012433,4.23030837,198.12,198.03,2.82]
[1761515012434,8.9375255,198.11,198.03,2.82]
[1761515012632,4.23030837,198.1,198.03,2.82]
[1761515013230,4.70721713,198.11,198.03,2.82]
[1761515014044,12.82071772,198.12,198.03,2.82]
[1761515014238,4.70721713,198.12,198.03,2.82]
[1761515014838,4.21984509,198.12,198.05,2.82]
[1761515015041,4.70721713,198.15,198.05,2.82]
[1761515015042,4.21984509,198.14,198.05,2.82]
[1761515015238,4.21984509,198.15,198.06,2.82]
[1761515015434,4.21984509,198.16,198.06,2.82]
[1761515015644,4.21984509,198.17,198.06,2.82]
[1761515015838,4.21984509,198.18,198.06,2.82]
[1761515016344,4.70721713,198.2,198.06,2.82]
[1761515016745,12.80039374,198.2,198.06,2.82]
[1761515016946,4.21984509,198.19,198.07,4.5435]
[1761515017245,4.21984509,198.19,198.08,2.82]
[1761515017647,4.21984509,198.2,198.08,2.82]
[1761515017835,4.70721713,198.21,198.08,2.82]
[1761515018341,4.21984509,198.21,198.08,2.82]
[1761515019048,4.70721713,198.22,198.08,2.82]
[1761515019653,8.92706222,198.22,198.08,2.82]
[1761515019852,4.21984509,198.21,198.08,2.82]
[1761515020053,4.70721713,198.22,198.08,2.82]
[1761515020442,4.21984509,198.22,198.08,2.82]
[1761515020946,4.70721713,198.23,198.08,2.82]
[1761515021942,4.69229801,198.23,198.08,2.82]
[1761515023448,8.55568274,198.24,198.08,2.82]
[1761515024254,4.69229801,198.24,198.08,2.82]
[1761515025251,4.69229801,198.23,198.08,2.82]
[1761515026150,4.69229801,198.22,198.08,2.82]
[1761515027958,8.54936669,198.23,198.08,2.82]
[1761515028261,4.69229801,198.23,198.08,2.82]
[1761515028554,8.54841714,198.23,198.08,2.82]
[1761515028754,4.69229801,198.22,198.08,2.82]
[1761515033457,8.54820067,198.22,198.08,2.82]
[1761515033658,4.69229801,198.22,198.08,2.82]
[1761515033858,8.54820067,198.22,198.08,2.82]
[1761515034057,4.69229801,198.21,198.08,2.82]
[1761515034257,8.54846148,198.22,198.08,2.82]
[1761515035562,4.69229801,198.22,198.08,2.82]
[1761515035766,8.54867205,198.22,198.08,2.82]
[1761515035965,4.69229801,198.22,198.08,2.82]
[1761515037365,8.54925978,198.22,198.08,2.82]
[1761515037764,4.69229801,198.22,198.08,2.82]
[1761515037964,8.54925978,198.22,198.08,2.82]
[1761515038365,4.69229801,198.21,198.08,2.82]
[1761515040765,8.55091605,198.21,198.08,2.82]
[1761515041271,4.69229801,198.21,198.08,2.82]
[1761515041470,8.55139967,198.21,198.08,2.82]
[1761515041671,4.69229801,198.2,198.08,2.82]
[1761515043872,4.69229801,198.19,198.08,2.82]
[1761515046277,4.69229801,198.18,198.08,2.82]
[1761515047681,3.85910166,198.2,198.0,6.70404452]
[1761515047682,4.69229801,198.17,198.0,2.68]
[1761515047878,4.69229801,198.16,198.0,2.68]
[1761515048376,4.56418739,198.15,198.0,2.68]
[1761515048577,4.56418739,198.14,198.0,2.68]
[1761515048785,4.56418739,198.15,198.0,2.68]
[1761515048965,4.56418739,198.14,198.0,2.68]
[1761515049169,4.56418739,198.13,198.0,2.68]
[1761515049378,4.56418739,198.15,198.0,2.68]
[1761515049573,4.56418739,198.14,198.0,2.68]
[1761515049773,4.56418739,198.13,198.0,2.68]
[1761515049974,4.56418739,198.15,198.0,2.68]
[1761515050174,4.56418739,198.14,198.0,2.68]
[1761515050365,4.56418739,198.13,198.0,2.68]
[1761515050569,4.56418739,198.12,198.0,2.68]
[1761515050772,4.69229801,198.1,198.0,2.68]
[1761515050971,4.56418739,198.09,198.0,2.68]
[1761515051277,4.56418739,198.08,198.0,2.68]
[1761515051480,4.56418739,198.07,198.0,2.68]
[1761515051780,4.56418739,198.08,198.0,2.68]
[1761515051971,4.56418739,198.07,198.0,2.68]
[1761515052174,4.56418739,198.06,198.0,2.68]
[1761515052375,9.2564854,198.09,198.0,2.68]
[1761515052572,4.56418739,198.08,198.0,2.68]
[1761515052780,4.56418739,198.07,198.0,2.68]
[1761515052979,4.56418739,198.06,198.0,2.68]
[1761515053182,4.56418739,198.08,198.0,2.68]
[1761515053382,4.56418739,198.07,198.0,2.68]
[1761515053581,4.69229801,198.09,198.0,2.68]
[1761515053582,4.56418739,198.06,198.0,2.68]
[1761515053782,4.56418739,198.08,198.0,2.68]
[1761515053982,4.56418739,198.07,198.0,2.68]
[1761515054182,4.56418739,198.06,198.0,2.68]
[1761515054385,4.56418739,198.08,198.0,2.68]
[1761515054590,4.56418739,198.07,198.0,2.68]
[1761515054787,4.56418739,198.08,198.0,2.68]
[1761515054987,4.56418739,198.07,198.0,2.68]
[1761515055194,4.56418739,198.06,198.0,2.68]
[1761515055495,4.56418739,198.08,198.0,2.68]
[1761515055697,4.56418739,198.07,198.0,2.68]
[1761515055896,4.56418739,198.06,198.0,2.68]
[1761515056091,4.56418739,198.08,198.0,2.68]
[1761515056289,4.56418739,198.07,198.0,2.68]
[1761515056489,4.56418739,198.08,198.0,2.68]
[1761515056692,4.56418739,198.07,198.0,2.68]
[1761515056898,4.56418739,198.08,198.0,2.68]
[1761515057200,4.56418739,198.07,198.0,2.68]
[1761515057401,4.56418739,198.08,198.0,2.68]
[1761515057601,4.56418739,198.07,198.0,2.68]
[1761515057899,4.56418739,198.08,198.0,2.68]
[1761515058096,4.56418739,198.07,198.0,2.68]
[1761515058396,4.56418739,198.08,198.0,2.68]
[1761515058599,4.69229801,198.09,198.0,2.68]
[1761515058600,4.56418739,198.07,198.0,2.68]
[1761515058798,4.56418739,198.08,198.0,2.68]
[1761515058991,4.56418739,198.07,198.0,2.68]
[1761515059188,4.56418739,198.08,198.0,2.68]
[1761515059393,4.56418739,198.07,198.0,2.68]
[1761515059695,4.56418739,198.08,198.0,2.68]
[1761515059895,4.56418739,198.07,198.0,2.68]
[1761515060096,4.56418739,198.08,198.0,2.68]
[1761515061001,4.56418739,198.07,198.0,2.68]
[1761515061299,4.56418739,198.08,198.0,2.68]
[1761515061499,4.56418739,198.07,198.0,2.68]
[1761515063504,4.56418739,198.08,198.0,2.68]
[1761515066106,4.51361927,198.08,198.0,2.68]
[1761515068305,9.20591728,198.08,198.0,2.68]
[1761515068599,4.51361927,198.07,198.0,2.68]
[1761515069407,9.20591728,198.08,198.0,2.68]
[1761515069599,4.51361927,198.07,198.0,2.68]
[1761515069908,4.69229801,198.08,198.0,2.68]
[1761515070102,4.51361927,198.07,198.0,2.68]
[1761515074907,4.51361927,198.08,198.0,2.68]
[1761515077311,9.20591728,198.07,197.9,2.64]
[1761515077608,13.10406038,198.06,197.9,2.64]
[1761515077813,4.51361927,198.05,197.87,4.66871727]
[1761515078004,9.20591728,198.05,197.88,2.64]
[1761515078209,4.51361927,198.04,197.88,2.64]
[1761515078507,9.20591728,198.05,197.88,2.64]
[1761515078712,4.51361927,198.04,197.89,4.5472]
[1761515079017,4.69229801,198.02,197.86,2.68]
[1761515079215,4.51361927,198.01,197.86,2.68]
[1761515079412,9.20591728,198.0,197.81,4.66871727]
[1761515079612,4.69229801,197.98,197.82,2.68]
[1761515079814,4.51361927,197.97,197.82,2.68]
[1761515081115,4.51361927,197.98,197.82,2.68]
[1761515081514,4.69229801,197.99,197.82,2.68]
[1761515082321,9.00070475,198.0,197.83,2.68]
[1761515083419,9.00070475,198.0,197.85,2.68]
[1761515083613,4.30840674,198.0,197.85,2.68]
[1761515084609,9.00070475,198.0,197.85,2.68]
[1761515084806,4.30840674,198.0,197.85,2.68]
[1761515086121,4.69229801,198.01,197.85,2.68]
[1761515086626,12.89428367,198.01,197.85,2.68]
[1761515086815,4.30840674,198.0,197.85,2.68]
[1761515087019,4.69229801,198.01,197.85,2.68]
[1761515087217,4.69229801,198.01,197.87,2.68]
[1761515087416,12.89440601,198.01,197.87,2.68]
[1761515087618,4.30840674,198.0,197.87,2.68]
[1761515088521,9.00070475,198.03,197.87,2.68]
[1761515089822,4.69229801,198.02,197.87,2.68]
[1761515090321,12.89655167,198.02,197.87,2.68]
[1761515090622,4.30840674,198.01,197.87,2.68]
[1761515090823,4.69229801,198.02,197.87,2.68]
[1761515091322,12.89642516,198.02,197.87,2.68]
[1761515091625,4.30840674,198.01,197.87,2.68]
[1761515091827,4.69229801,198.02,197.87,2.68]
[1761515092320,12.89742927,198.02,197.87,2.68]
[1761515092521,4.30840674,198.01,197.87,2.68]
[1761515092718,4.69229801,198.02,197.87,2.68]
[1761515093115,12.8986305,198.02,197.87,2.68]
[1761515093323,9.00070475,198.01,197.87,2.68]
[1761515093623,4.30840674,198.0,197.87,2.68]
[1761515093823,4.69229801,198.01,197.87,2.68]
[1761515094227,9.00070475,198.01,197.87,2.68]
[1761515094524,4.30840674,198.0,197.87,2.68]
[1761515094724,4.69229801,198.01,197.87,2.68]
[1761515095118,9.00070475,198.01,197.87,2.68]
[1761515095319,4.30840674,198.0,197.87,2.68]
[1761515095515,4.69229801,198.01,197.87,2.68]
[1761515095921,12.90197677,198.01,197.87,2.68]
[1761515096126,4.30840674,198.0,197.87,2.68]
[1761515096426,4.69229801,198.01,197.87,2.68]
[1761515097221,12.90210807,198.01,197.87,2.68]
[1761515097429,4.30840674,198.0,197.87,2.68]
[1761515097620,4.69229801,198.01,197.87,2.68]
[1761515098020,12.90801442,198.01,197.87,2.68]
[1761515098222,4.31416834,198.0,197.87,2.68]
[1761515099627,4.69229801,198.01,197.87,2.68]
[1761515100128,12.90850884,198.01,197.87,2.68]
[1761515100328,4.31416834,198.0,197.87,2.68]
[1761515100543,4.69229801,198.01,197.87,2.68]
[1761515101029,12.9087637,198.01,197.87,2.68]
[1761515101230,4.31416834,198.0,197.87,2.68]
[1761515101630,4.69229801,198.01,197.87,2.68]
[1761515101831,4.69229801,198.0,197.87,2.68]
[1761515102130,12.90254261,198.01,197.87,2.68]
[1761515102326,4.31416834,198.0,197.87,2.68]
[1761515103130,4.69229801,198.01,197.87,2.68]
[1761515103526,12.90302035,198.01,197.87,2.68]
[1761515103722,9.00646635,198.0,197.87,2.68]
[1761515103937,4.31416834,197.99,197.87,2.68]
[1761515104128,4.31416834,198.0,197.87,2.68]
[1761515104330,4.69229801,198.01,197.87,2.68]
[1761515104530,4.69229801,198.0,197.87,2.68]
[1761515104735,12.90379221,198.01,197.87,2.68]
[1761515104932,4.31416834,198.0,197.87,2.68]
[1761515105133,4.69229801,198.01,197.87,2.68]
[1761515105331,4.69229801,198.0,197.87,2.68]
[1761515105734,9.00646635,198.0,197.87,2.68]
[1761515105936,4.31416834,197.99,197.87,2.68]
[1761515106133,4.69229801,198.0,197.87,2.68]
[1761515106536,9.00646635,198.0,197.87,2.68]
[1761515106737,4.31416834,197.99,197.87,2.68]
[1761515106938,4.31416834,197.99,197.86,4.5482]
[1761515106939,4.69229801,198.01,197.9,2.66]
[1761515107935,9.00646635,198.01,197.9,2.66]
[1761515108136,4.31416834,198.0,197.9,2.66]
[1761515108336,4.69229801,198.01,197.9,2.66]
[1761515108834,9.00646635,198.01,197.9,2.66]
[1761515109036,4.31416834,198.0,197.9,2.66]
[1761515110937,4.69229801,198.01,197.9,2.66]
[1761515111337,12.90669101,198.01,197.9,2.66]
[1761515111540,4.31416834,198.0,197.9,2.66]
[1761515112435,4.69229801,198.01,197.9,2.66]
[1761515112837,12.90808829,198.01,197.9,2.66]
[1761515113040,4.31416834,198.0,197.9,2.66]
[1761515113443,9.00646635,198.0,197.9,2.66]
[1761515113643,4.31416834,197.99,197.9,2.66]
[1761515113838,4.69229801,198.0,197.9,2.66]
[1761515114244,9.00646635,198.0,197.9,2.66]
[1761515114446,4.31416834,197.99,197.9,2.66]
[1761515114636,4.69229801,198.0,197.9,2.66]
[1761515115038,9.00646635,198.0,197.9,2.66]
[1761515115237,4.31416834,197.99,197.9,2.66]
[1761515115440,4.69229801,198.0,197.9,2.66]
[1761515115940,12.91033831,198.0,197.9,2.66]
[1761515116140,4.31416834,197.99,197.9,2.66]
[1761515116340,4.69229801,198.0,197.9,2.66]
[1761515116541,9.00646635,198.0,197.9,2.66]
[1761515116941,4.31416834,197.99,197.9,2.66]
[1761515117347,4.69229801,198.0,197.9,2.66]
[1761515117547,9.00646635,198.0,197.9,2.66]
[1761515117944,4.31416834,197.99,197.9,2.66]
[1761515118139,9.00646635,197.99,197.9,2.66]
[1761515118344,4.31416834,197.98,197.9,2.66]
[1761515118539,4.69229801,197.99,197.9,2.66]
[1761515118745,12.91298795,198.0,197.9,2.66]
[1761515118942,4.31416834,197.99,197.9,2.66]
[1761515119359,9.00646635,197.99,197.9,2.66]
[1761515119647,4.31416834,197.98,197.9,2.66]
[1761515119848,4.69229801,197.99,197.9,2.66]
[1761515120245,4.69229801,197.98,197.9,2.66]
[1761515120451,4.31416834,197.98,197.9,2.66]
[1761515120851,9.00646635,197.98,197.9,2.66]
[1761515121051,4.31416834,197.97,197.9,2.66]
[1761515121246,4.69229801,197.98,197.9,2.66]
[1761515121451,4.31416834,197.97,197.9,2.66]
[1761515122251,4.31416834,197.96,197.9,2.66]
[1761515122458,4.31416834,197.97,197.9,2.66]
[1761515122658,4.31416834,197.96,197.9,2.66]
[1761515122854,4.31416834,197.97,197.9,2.66]
[1761515123058,4.31416834,197.96,197.9,2.66]
[1761515123358,9.00646635,197.97,197.9,2.66]
[1761515123558,4.31416834,197.96,197.9,2.66]
[1761515125058,4.31416834,197.97,197.9,2.66]
[1761515125357,4.31416834,197.96,197.9,2.66]
[1761515126459,4.31416834,197.95,197.9,2.66]
[1761515126661,4.31416834,197.96,197.9,2.66]
[1761515126959,4.31416834,197.95,197.9,2.66]
[1761515127159,4.31416834,197.96,197.9,2.66]
[1761515127360,4.31416834,197.95,197.9,2.66]
[1761515127554,4.31416834,197.96,197.9,2.66]
[1761515127749,4.31416834,197.95,197.9,2.66]
[1761515128052,4.31416834,197.96,197.9,2.66]
[1761515128251,4.31416834,197.95,197.9,2.66]
[1761515128450,4.35146306,197.96,197.9,2.66]
[1761515128655,4.35146306,197.95,197.9,2.66]
[1761515128860,4.35146306,197.96,197.9,2.66]
[1761515129060,4.35146306,197.95,197.9,2.66]
[1761515129261,4.35146306,197.96,197.9,2.66]
[1761515129453,4.35146306,197.95,197.9,2.66]
[1761515129655,4.35146306,197.96,197.9,2.66]
[1761515129857,4.35146306,197.95,197.9,2.66]
[1761515130055,4.69229801,197.97,197.9,2.66]
[1761515130056,4.35146306,197.96,197.9,2.66]
[1761515130264,4.35146306,197.95,197.9,2.66]
[1761515130461,4.35146306,197.96,197.9,2.66]
[1761515130661,4.35146306,197.95,197.9,2.66]